bitfinex/quotes_BTCUSD_20250916
["timestamp","ask_amount","ask_price","bid_price","bid_amount"]
[1758031825804,2.65043503,115120.0,115110.0,1e-08]
[1758031827212,2.36267503,115120.0,115110.0,1e-08]
[1758031827430,2.65039503,115120.0,115110.0,1e-08]
[1758031827662,3.1611966,115120.0,115110.0,1e-08]
[1758031827860,3.1611966,115120.0,115080.0,1e-08]
[1758031827861,0.30392894,115090.0,115080.0,1e-08]
[1758031828073,1.6036186,115090.0,115080.0,1e-08]
[1758031828295,1.9457386,115090.0,115080.0,1e-08]
[1758031828507,1.9735286,115090.0,115080.0,1e-08]
[1758031828715,1.99964961,115090.0,115080.0,1e-08]
[1758031829844,2.00164961,115090.0,115080.0,0.00100001]
[1758031830732,2.00464961,115090.0,115080.0,0.00200001]
[1758031832466,2.00461588,115090.0,115080.0,0.00200001]
[1758031832672,0.72960007,115090.0,115080.0,0.03050001]
[1758031832885,1.01728007,115090.0,115080.0,0.03050001]
[1758031833094,1.01728007,115090.0,115080.0,0.02755001]
[1758031833307,1.41649399,115090.0,115080.0,0.00412001]
[1758031833515,1.53277544,115090.0,115080.0,0.00412001]
[1758031833723,1.53271462,115090.0,115080.0,0.00200001]
[1758031834397,1.53267462,115090.0,115080.0,0.00200001]
[1758031835329,1.66917607,115090.0,115080.0,0.00200001]
[1758031836123,1.58267462,115090.0,115080.0,0.00200001]
[1758031836326,1.04729115,115090.0,115080.0,0.03181001]
[1758031836674,1.04728632,115090.0,115080.0,0.03181001]
[1758031837568,0.6782243,115090.0,115080.0,0.03181001]
[1758031837778,0.75968632,115090.0,115080.0,0.03181001]
[1758031838023,1.04728632,115090.0,115080.0,0.03181001]
[1758031838249,0.6782243,115090.0,115080.0,0.03181001]
[1758031838454,0.6782243,115090.0,115080.0,0.00407001]
[1758031838455,1.04728632,115090.0,115080.0,0.00407001]
[1758031838666,1.04728632,115090.0,115080.0,0.02882001]
[1758031838877,1.04728632,115090.0,115080.0,0.03181001]
[1758031840357,0.36047615,115090.0,115080.0,0.03181001]
[1758031840570,1.01709817,115090.0,115080.0,0.03181001]
[1758031841634,1.01705817,115090.0,115080.0,0.03181001]
[1758031842283,0.64799615,115090.0,115080.0,0.03181001]
[1758031842504,1.01705817,115090.0,115080.0,0.03181001]
[1758031843137,0.64799615,115090.0,115080.0,0.03181001]
[1758031843558,0.36047615,115090.0,115080.0,0.03181001]
[1758031843767,0.64795615,115090.0,115080.0,0.03181001]
[1758031844181,0.62183514,115090.0,115080.0,0.03181001]
[1758031844625,0.99089716,115090.0,115080.0,0.03181001]
[1758031844836,0.98889716,115090.0,115080.0,0.03081001]
[1758031845048,0.98689716,115090.0,115080.0,0.03181001]
[1758031845259,0.61783514,115090.0,115080.0,0.03181001]
[1758031845490,0.98889716,115090.0,115080.0,0.03181001]
[1758031845770,0.61984456,115090.0,115080.0,0.03181001]
[1758031846415,0.98890658,115090.0,115080.0,0.03181001]
[1758031846854,0.98287837,115090.0,115080.0,0.03181001]
[1758031847266,0.61381635,115090.0,115080.0,0.03181001]
[1758031847485,0.61377635,115090.0,115080.0,0.13569067]
[1758031847680,0.61377635,115090.0,115080.0,0.2922036]
[1758031847892,0.44006013,115090.0,115080.0,0.2922036]
[1758031848089,0.61383717,115090.0,115080.0,0.2922036]
[1758031848537,0.44006013,115090.0,115080.0,0.2922036]
[1758031848738,0.61383717,115090.0,115080.0,0.2922036]
[1758031849175,0.61383717,115090.0,115080.0,0.11841146]
[1758031850188,0.44006013,115090.0,115080.0,0.2922036]
[1758031850601,0.15262013,115090.0,115080.0,0.2922036]
[1758031850816,0.44002013,115090.0,115080.0,0.66126562]
[1758031851015,0.61379717,115090.0,115080.0,0.66126562]
[1758031851467,0.61379717,115090.0,115080.0,0.2922036]
[1758031851687,0.61379717,115090.0,115080.0,0.66126562]
[1758031851871,0.61379717,115090.0,115080.0,0.2922036]
[1758031852129,0.61384959,115090.0,115080.0,0.2922036]
[1758031852552,0.61384959,115090.0,115080.0,0.6922036]
[1758031853108,0.44007255,115090.0,115080.0,0.6922036]
[1758031853308,0.61384959,115090.0,115080.0,0.6922036]
[1758031854103,0.44007255,115090.0,115080.0,1.40126562]
[1758031854330,0.42398,115090.0,115080.0,1.40126562]
[1758031854765,0.42388,115090.0,115080.0,1.40126562]
[1758031855406,0.42388,115090.0,115080.0,1.0322036]
[1758031855588,0.42388,115090.0,115080.0,1.40126562]
[1758031856879,0.42388,115090.0,115080.0,1.0322036]
[1758031857140,0.42388,115090.0,115080.0,1.40126562]
[1758031857832,0.42388,115090.0,115080.0,1.44772906]
[1758031858109,0.13648,115090.0,115080.0,1.44772906]
[1758031858345,0.37372,115090.0,115080.0,1.0322036]
[1758031858578,0.37372,115090.0,115080.0,1.86325452]
[1758031859031,0.37272,115090.0,115080.0,1.86125452]
[1758031859255,0.37072,115090.0,115080.0,1.86125452]
[1758031859494,0.37172,115090.0,115080.0,1.86325452]
[1758031859783,0.37372,115090.0,115080.0,1.86625452]
[1758031860242,0.37368,115090.0,115080.0,1.86625452]
[1758031860706,0.37268,115090.0,115080.0,1.86425452]
[1758031861026,0.37368,115090.0,115080.0,1.86825452]
[1758031861401,0.37368,115090.0,115080.0,1.89436107]
[1758031861854,0.37368,115090.0,115080.0,1.06331015]
[1758031862081,0.37368,115090.0,115080.0,1.89436107]
[1758031862285,0.08648,115090.0,115080.0,1.89436107]
[1758031862485,0.37136,115090.0,115080.0,1.89436107]
[1758031862899,0.37136,115090.0,115080.0,1.06331015]
[1758031863102,0.37136,115090.0,115080.0,1.89436107]
[1758031864881,0.37136,115090.0,115080.0,1.06331015]
[1758031865076,0.37136,115090.0,115080.0,1.89436107]
[1758031865277,0.37136,115090.0,115080.0,1.47883561]
[1758031867747,0.37136,115090.0,115080.0,1.0372036]
[1758031867959,0.37136,115090.0,115080.0,1.45272906]
[1758031868168,0.70532,115090.0,115080.0,1.45272906]
[1758031868383,0.70532,115090.0,115080.0,1.0372036]
[1758031868628,0.70532,115090.0,115080.0,1.45272906]
[1758031868848,1.3446225,115090.0,115080.0,0.86341146]
[1758031869068,1.3446225,115090.0,115080.0,1.0372036]
[1758031869278,0.92909704,115090.0,115080.0,0.6972036]
[1758031869507,1.3446225,115090.0,115080.0,0.6972036]
[1758031869732,1.3446225,115090.0,115080.0,1.0372036]
[1758031870170,0.92909704,115090.0,115080.0,1.0372036]
[1758031870387,1.3446225,115090.0,115080.0,1.0372036]
[1758031870572,1.3446225,115090.0,115080.0,0.46341146]
[1758031870998,1.3446225,115090.0,115080.0,0.46015146]
[1758031871418,1.3446225,115090.0,115080.0,0.46309146]
[1758031871626,0.92909704,115090.0,115080.0,0.46309146]
[1758031871842,1.3446225,115090.0,115080.0,0.43567146]
[1758031872050,1.3740025,115090.0,115080.0,0.43360146]
[1758031872499,0.95547704,115090.0,115080.0,0.09567146]
[1758031872692,0.66959704,115090.0,115080.0,0.09167146]
[1758031872861,1.3478625,115090.0,115080.0,0.09167146]
[1758031873080,1.76338796,115090.0,115080.0,0.08960146]
[1758031873294,1.79060796,115090.0,115080.0,0.00310001]
[1758031873483,1.3730825,115090.0,115080.0,0.00010001]
[1758031873916,1.3740825,115090.0,115080.0,0.00210001]
[1758031874272,0.67069704,115090.0,115080.0,0.00010001]
[1758031874570,1.4202225,115090.0,115080.0,0.00010001]
[1758031874789,1.26327704,115090.0,115080.0,0.09461146]
[1758031875063,0.97631704,115090.0,115080.0,0.11909146]
[1758031875493,1.26327704,115090.0,115080.0,0.11909146]
[1758031875678,1.26227704,115090.0,115080.0,0.11609146]
[1758031875907,1.3918425,115090.0,115080.0,0.11809146]
[1758031876124,1.6787625,115090.0,115080.0,0.13547067]
[1758031876374,1.26423704,115090.0,115080.0,0.13747067]
[1758031876606,1.6797625,115090.0,115080.0,0.13747067]
[1758031877031,0.97731704,115090.0,115080.0,0.13747067]
[1758031877295,1.6797625,115090.0,115080.0,0.13747067]
[1758031877529,1.6797625,115090.0,115080.0,0.11715146]
[1758031877775,1.6797625,115090.0,115080.0,0.09267146]
[1758031879131,1.29361704,115090.0,115080.0,0.09060146]
[1758031879354,1.7091425,115090.0,115080.0,0.09060146]
[1758031880088,1.6819225,115090.0,115080.0,0.09060146]
[1758031880369,1.7091425,115090.0,115080.0,0.09060146]
[1758031880587,1.29361704,115090.0,115080.0,0.09060146]
[1758031880801,1.29357704,115090.0,115080.0,0.09060146]
[1758031881016,1.7091025,115090.0,115080.0,0.09060146]
[1758031883756,1.4222225,115090.0,115080.0,0.09060146]
[1758031883972,1.7091025,115090.0,115080.0,0.09060146]
[1758031884189,1.7090625,115090.0,115080.0,0.09060146]
[1758031885134,1.29053704,115090.0,115080.0,0.09060146]
[1758031885435,1.29353704,115090.0,115080.0,0.09060146]
[1758031885679,1.7090625,115090.0,115080.0,0.09060146]
[1758031887012,1.73517653,115090.0,115080.0,0.09060146]
[1758031888308,1.73517653,115090.0,115080.0,0.00410001]
[1758031888522,2.19426897,115090.0,115080.0,0.00410001]
[1758031888750,2.21035511,115090.0,115080.0,0.00410001]
[1758031889547,2.19694003,115090.0,115080.0,0.00410001]
[1758031890142,1.07904911,115090.0,115080.0,0.00410001]
[1758031890355,1.36584911,115090.0,115080.0,0.00410001]
[1758031890592,1.49457457,115090.0,115080.0,0.00410001]
[1758031890809,1.07904911,115090.0,115080.0,0.00410001]
[1758031891005,1.78133457,115090.0,115080.0,0.00410001]
[1758031891224,1.36580911,115090.0,115080.0,0.00410001]
[1758031891424,1.29019107,115090.0,115080.0,0.00617001]
[1758031891656,1.73209653,115090.0,115080.0,0.00410001]
[1758031891856,1.73509653,115090.0,115080.0,0.00410001]
[1758031893542,1.31957107,115090.0,115080.0,0.00410001]
[1758031893758,1.31917107,115090.0,115080.0,0.00400001]
[1758031893968,1.73469653,115090.0,115080.0,0.00400001]
[1758031895208,1.31917107,115090.0,115080.0,0.00400001]
[1758031895468,1.73469653,115090.0,115080.0,0.00400001]
[1758031896876,1.76484843,115090.0,115080.0,0.00400001]
[1758031897084,2.18037389,115090.0,115080.0,0.00400001]
[1758031897296,2.19646492,115090.0,115080.0,0.00400001]
[1758031899387,1.365414,115090.0,115080.0,0.00400001]
[1758031899594,2.19646492,115090.0,115080.0,0.00400001]
[1758031903040,2.19648179,115090.0,115080.0,0.00400001]
[1758031903255,1.36543087,115090.0,115080.0,0.00400001]
[1758031903463,2.19648179,115090.0,115080.0,0.00400001]
[1758031904625,1.36543087,115090.0,115080.0,0.00400001]
[1758031904848,2.19648179,115090.0,115080.0,0.00400001]
[1758031905609,1.36543087,115090.0,115080.0,0.00400001]
[1758031905706,2.19648179,115090.0,115080.0,0.00400001]
[1758031905934,1.78095633,115090.0,115080.0,0.00400001]
[1758031906161,1.78079633,115090.0,115080.0,0.00400001]
[1758031907328,1.07867087,115090.0,115080.0,0.00400001]
[1758031907561,1.78083633,115090.0,115080.0,0.00400001]
[1758031907785,1.36531087,115090.0,115080.0,0.00400001]
[1758031908009,1.78083633,115090.0,115080.0,0.00400001]
[1758031909624,1.49427633,115090.0,115080.0,0.00612001]
[1758031909864,1.77783633,115090.0,115080.0,0.00612001]
[1758031910361,1.78107633,115090.0,115080.0,0.00612001]
[1758031910610,1.43466443,115090.0,115080.0,0.00612001]
[1758031910839,1.72118443,115090.0,115080.0,0.11871146]
[1758031911070,1.72118443,115090.0,115080.0,0.11568146]
[1758031911287,1.6950704,115090.0,115080.0,0.09262146]
[1758031911543,1.27954494,115090.0,115080.0,0.09262146]
[1758031911754,1.6950704,115090.0,115080.0,0.11568146]
[1758031912009,1.27954494,115090.0,115080.0,0.11871146]
[1758031912684,1.6950704,115090.0,115080.0,0.11568146]
[1758031913128,1.6950704,115090.0,115080.0,0.11871146]
[1758031913378,1.6950704,115090.0,115080.0,0.09262146]
[1758031913604,1.6970704,115090.0,115080.0,0.09262146]
[1758031914063,1.4105504,115090.0,115080.0,0.09262146]
[1758031914285,1.4105504,115090.0,115080.0,0.00612001]
[1758031914286,1.6970304,115090.0,115080.0,0.00612001]
[1758031914579,1.7213304,115090.0,115080.0,0.00612001]
[1758031915031,2.17024776,115090.0,115080.0,0.00400001]
[1758031915273,0.25394404,115080.0,115070.0,0.0001]
[1758031915498,1.38754286,115080.0,115070.0,0.0001]
[1758031915749,1.03501006,115070.0,115060.0,0.0003]
[1758031915969,1.38755796,115070.0,115060.0,0.0003]
[1758031916192,1.41709796,115070.0,115060.0,0.0003]
[1758031916429,1.42567501,115070.0,115060.0,0.0003]
[1758031916651,1.42915812,115070.0,115060.0,0.00077288]
[1758031916884,1.42915812,115070.0,115060.0,1e-08]
[1758031917987,0.96791815,115070.0,115060.0,1e-08]
[1758031918258,0.68147815,115070.0,115060.0,1e-08]
[1758031918571,0.97191815,115070.0,115060.0,0.00100001]
[1758031918845,0.97291815,115070.0,115060.0,0.00100001]
[1758031919565,0.3166672,115070.0,115060.0,0.00100001]
[1758031919567,0.65893815,115070.0,115060.0,0.00312001]
[1758031919822,0.94333815,115070.0,115060.0,0.02618001]
[1758031920074,0.96937815,115070.0,115060.0,0.00312001]
[1758031920352,0.97254815,115070.0,115060.0,0.00100001]
[1758031921138,0.96937815,115070.0,115060.0,0.00303001]
[1758031921403,0.97254815,115070.0,115060.0,0.00100001]
[1758031922994,0.68614815,115070.0,115060.0,0.00100001]
[1758031923239,0.97254815,115070.0,115060.0,0.00100001]
[1758031924169,0.98801711,115070.0,115060.0,0.00100001]
[1758031925304,0.6027372,115070.0,115060.0,0.00100001]
[1758031925526,0.97254815,115070.0,115060.0,0.00100001]
[1758031925757,0.3163372,115070.0,115060.0,0.00100001]
[1758031926060,0.97240815,115070.0,115060.0,0.00100001]
[1758031926704,0.3162372,115070.0,115060.0,0.00100001]
[1758031926933,0.97240815,115070.0,115060.0,0.00100001]
[1758031927376,0.6025972,115070.0,115060.0,0.00100001]
[1758031927591,0.97240815,115070.0,115060.0,0.00100001]
[1758031928266,0.6025972,115070.0,115060.0,0.00100001]
[1758031928490,0.97240815,115070.0,115060.0,0.00100001]
[1758031929194,0.97236815,115070.0,115060.0,0.00100001]
[1758031929645,0.68604815,115070.0,115060.0,0.00100001]
[1758031930118,0.2891372,115070.0,115060.0,0.00302001]
[1758031930333,0.94526815,115070.0,115060.0,0.00302001]
[1758031930565,0.2871272,115070.0,115060.0,0.00302001]
[1758031930847,0.94325815,115070.0,115060.0,0.00302001]
[1758031931542,0.5734472,115070.0,115060.0,0.00302001]
[1758031931769,0.94526815,115070.0,115060.0,0.00302001]
[1758031931997,0.5734472,115070.0,115060.0,0.00302001]
[1758031932270,0.65693815,115070.0,115060.0,0.00302001]
[1758031932481,0.94325815,115070.0,115060.0,0.00302001]
[1758031932714,0.94526815,115070.0,115060.0,0.00302001]
[1758031933166,0.65894815,115070.0,115060.0,0.00302001]
[1758031933406,0.94526815,115070.0,115060.0,0.00302001]
[1758031933698,0.65693815,115070.0,115060.0,0.00302001]
[1758031933927,0.94325815,115070.0,115060.0,0.02703001]
[1758031934153,0.96920815,115070.0,115060.0,0.00302001]
[1758031934854,0.5993972,115070.0,115060.0,0.00302001]
[1758031935081,0.68288815,115070.0,115060.0,0.00302001]
[1758031935283,0.96916815,115070.0,115060.0,0.00302001]
[1758031935831,0.5993572,115070.0,115060.0,0.00302001]
[1758031936052,0.96916815,115070.0,115060.0,0.00302001]
[1758031936341,0.8884813,115070.0,115060.0,0.03018001]
[1758031937673,0.51867035,115070.0,115060.0,0.03018001]
[1758031938132,0.8884813,115070.0,115060.0,0.02703001]
[1758031938589,0.51867035,115070.0,115060.0,0.02703001]
[1758031938806,0.8884813,115070.0,115060.0,0.02703001]
[1758031939457,0.6022013,115070.0,115060.0,0.02703001]
[1758031939666,0.8884813,115070.0,115060.0,0.02703001]
[1758031940996,0.8884813,115070.0,115060.0,0.03018001]
[1758031941215,0.51867035,115070.0,115060.0,0.03018001]
[1758031941502,0.8884813,115070.0,115060.0,0.03018001]
[1758031942134,0.8904913,115070.0,115060.0,0.02703001]
[1758031942382,0.8884813,115070.0,115060.0,0.02703001]
[1758031942614,0.8904913,115070.0,115060.0,0.00302001]
[1758031942859,0.9174413,115070.0,115060.0,0.00100001]
[1758031943565,1.0009613,115070.0,115060.0,0.00100001]
[1758031944085,1.0311132,115070.0,115060.0,0.00100001]
[1758031944326,1.11761465,115070.0,115060.0,0.00100001]
[1758031944555,1.13373321,115070.0,115060.0,0.00100001]
[1758031944780,1.04723176,115070.0,115060.0,0.00100001]
[1758031945703,1.13373321,115070.0,115060.0,1e-08]
[1758031946705,1.13365321,115070.0,115060.0,1e-08]
[1758031948119,1.47365321,115070.0,115060.0,1e-08]
[1758031948353,1.56015466,115070.0,115060.0,1e-08]
[1758031948837,1.56619788,115070.0,115060.0,1e-08]
[1758031949079,0.25398936,115050.0,115040.0,0.0002]
[1758031949376,1.23046792,115050.0,115040.0,0.00014179]
[1758031949613,1.34592937,115050.0,115040.0,0.00014179]
[1758031949866,1.05982937,115050.0,115040.0,0.00014179]
[1758031950360,1.42964032,115050.0,115040.0,0.00014179]
[1758031950623,1.05982937,115050.0,115040.0,0.00014179]
[1758031950844,1.71584032,115050.0,115040.0,0.00014179]
[1758031951819,1.34702937,115050.0,115040.0,0.00014179]
[1758031952054,1.71884032,115050.0,115040.0,0.00114179]
[1758031953729,1.74496957,115050.0,115040.0,0.00114179]
[1758031954417,1.37515862,115050.0,115040.0,0.00114179]
[1758031954679,2.07916957,115050.0,115040.0,0.00114179]
[1758031955138,1.70935862,115050.0,115040.0,0.00114179]
[1758031955367,2.07916957,115050.0,115040.0,0.00114179]
[1758031956787,1.70935862,115050.0,115040.0,0.00114179]
[1758031957017,2.44898052,115050.0,115040.0,0.00114179]
[1758031957301,2.44898052,115050.0,115040.0,1e-08]
[1758031957534,2.58548197,115050.0,115040.0,1e-08]
[1758031957996,2.59150978,115050.0,115040.0,1e-08]
[1758031958910,2.30530978,115050.0,115040.0,1e-08]
[1758031959151,2.59270978,115050.0,115040.0,1e-08]
[1758031959676,2.64270978,115050.0,115040.0,1e-08]
[1758031960438,2.64270978,115050.0,115010.0,0.0002]
[1758031960694,0.70736565,115020.0,115010.0,0.00034189]
[1758031960980,0.64191326,115020.0,115010.0,0.00034189]
[1758031961204,1.01384421,115020.0,115010.0,0.00034189]
[1758031961450,0.69625893,115020.0,115010.0,0.00034189]
[1758031961719,0.69637893,115020.0,115010.0,0.00034189]
[1758031962003,0.69677893,115020.0,115010.0,0.00034189]
[1758031962269,1.07517205,115020.0,115010.0,0.00034189]
[1758031962475,1.41517205,115020.0,115010.0,0.00034189]
[1758031962722,1.0454611,115020.0,115010.0,0.00034189]
[1758031962954,1.41551205,115020.0,115010.0,0.00034189]
[1758031963393,1.5020135,115020.0,115010.0,0.00034189]
[1758031963916,1.5020135,115020.0,115000.0,0.01344]
[1758031963917,0.62386077,115010.0,115000.0,0.01344]
[1758031964149,0.60440838,115010.0,115000.0,0.01358192]
[1758031964368,0.97633933,115010.0,115000.0,0.01566192]
[1758031964588,1.00242933,115010.0,115000.0,0.01566192]
[1758031964830,0.99949933,115010.0,115000.0,0.01566192]
[1758031965022,1.26571933,115010.0,115000.0,0.01566192]
[1758031965237,0.86355648,115010.0,115000.0,0.01566192]
[1758031965442,0.89370838,115010.0,115000.0,0.01566192]
[1758031965698,1.26351933,115010.0,115000.0,0.01566192]
[1758031965954,0.60450838,115010.0,115000.0,0.01566192]
[1758031966203,1.26507933,115010.0,115000.0,0.04312192]
[1758031966442,0.89526838,115010.0,115000.0,0.04312192]
[1758031966686,0.97531933,115010.0,115000.0,0.04312192]
[1758031966895,1.23492743,115010.0,115000.0,0.04312192]
[1758031967106,1.23492743,115010.0,115000.0,0.04000192]
[1758031967350,0.94616743,115010.0,115000.0,0.04312192]
[1758031967571,1.23544743,115010.0,115000.0,0.04312192]
[1758031967787,0.86463648,115010.0,115000.0,0.04312192]
[1758031968001,1.23536743,115010.0,115000.0,0.04312192]
[1758031968231,0.86551648,115010.0,115000.0,0.04312192]
[1758031968454,0.86747648,115010.0,115000.0,0.04312192]
[1758031968930,1.23728743,115010.0,115000.0,0.03792192]
[1758031969139,0.86747648,115010.0,115000.0,0.01566192]
[1758031969391,1.23728743,115010.0,115000.0,0.01566192]
[1758031969608,1.23940743,115010.0,115000.0,0.01358192]
[1758031969814,1.26549743,115010.0,115000.0,0.01358192]
[1758031970277,0.94161854,115010.0,115000.0,0.01358192]
[1758031970486,0.94161854,115010.0,115000.0,0.01566192]
[1758031970487,1.29271933,115010.0,115000.0,0.01566192]
[1758031970709,1.29564933,115010.0,115000.0,0.01358192]
[1758031971138,1.29464933,115010.0,115000.0,0.01358192]
[1758031971346,0.92283838,115010.0,115000.0,0.01358192]
[1758031971570,1.29364933,115010.0,115000.0,0.01358192]
[1758031971803,1.29464933,115010.0,115000.0,0.01358192]
[1758031972016,0.92383838,115010.0,115000.0,0.01358192]
[1758031972235,1.29364933,115010.0,115000.0,0.01358192]
[1758031972490,1.29464933,115010.0,115000.0,0.01358192]
[1758031973572,0.92483838,115010.0,115000.0,0.01358192]
[1758031974011,1.29464933,115010.0,115000.0,0.01358192]
[1758031974458,1.30067013,115010.0,115000.0,0.01358192]
[1758031974904,1.30060704,115010.0,115000.0,0.01358192]
[1758031975128,0.59373911,114990.0,114980.0,0.00892069]
[1758031975333,0.98551458,114990.0,114980.0,0.03330801]
[1758031975543,0.98551458,114990.0,114980.0,0.03538801]
[1758031976703,0.98773458,114990.0,114980.0,0.00792801]
[1758031976919,0.98561458,114990.0,114980.0,0.00792801]
[1758031977371,0.61780363,114990.0,114980.0,0.00792801]
[1758031977596,0.98761458,114990.0,114980.0,0.00792801]
[1758031977818,0.61680363,114990.0,114980.0,0.00792801]
[1758031978041,0.98661458,114990.0,114980.0,0.00792801]
[1758031978258,0.61580363,114990.0,114980.0,0.00792801]
[1758031978479,0.98561458,114990.0,114980.0,0.03226801]
[1758031978701,0.98861458,114990.0,114980.0,0.03538801]
[1758031978919,0.98861458,114990.0,114980.0,0.03226801]
[1758031979142,0.61880363,114990.0,114980.0,0.03538801]
[1758031979362,0.32664363,114990.0,114980.0,0.03538801]
[1758031979615,0.98977458,114990.0,114980.0,0.00584801]
[1758031979828,1.45506593,114990.0,114980.0,0.00584801]
[1758031980041,1.45506593,114990.0,114980.0,0.00794801]
[1758031980286,0.61996363,114990.0,114980.0,0.00794801]
[1758031980505,1.03645478,114990.0,114980.0,0.03412801]
[1758031980727,1.03645478,114990.0,114980.0,0.00584801]
[1758031980728,1.54190738,114990.0,114980.0,0.00584801]
[1758031980949,0.62028363,114990.0,114980.0,0.03109801]
[1758031981396,0.62630922,114990.0,114980.0,0.03109801]
[1758031981615,0.62630922,114990.0,114980.0,0.03412801]
[1758031981853,1.46454152,114990.0,114980.0,0.00584801]
[1758031982074,1.46143152,114990.0,114980.0,0.00794801]
[1758031982306,1.04280037,114990.0,114980.0,0.00794801]
[1758031982534,0.63414922,114990.0,114980.0,0.01097801]
[1758031982753,0.63414922,114990.0,114980.0,0.03412801]
[1758031982754,1.05064037,114990.0,114980.0,0.03412801]
[1758031983018,1.05064037,114990.0,114980.0,0.03109801]
[1758031983473,1.05064037,114990.0,114980.0,0.03412801]
[1758031983704,0.96846922,114990.0,114980.0,0.03109801]
[1758031983929,1.08348037,114990.0,114980.0,0.03416801]
[1758031984187,1.38496037,114990.0,114980.0,0.03416801]
[1758031984418,1.37893478,114990.0,114980.0,0.03416801]
[1758031984661,1.37893478,114990.0,114980.0,0.12066946]
[1758031984662,1.07745478,114990.0,114980.0,0.12066946]
[1758031984883,1.37845478,114990.0,114980.0,0.12066946]
[1758031985108,1.37833478,114990.0,114980.0,0.12066946]
[1758031985576,0.96184363,114990.0,114980.0,0.12066946]
[1758031985842,0.96184363,114990.0,114980.0,0.31200707]
[1758031986076,0.96168363,114990.0,114980.0,0.7111039]
[1758031986341,0.96168363,114990.0,114980.0,0.12066946]
[1758031986852,1.37817478,114990.0,114980.0,0.12066946]
[1758031987105,0.96168363,114990.0,114980.0,0.53716061]
[1758031987604,0.96168363,114990.0,114980.0,0.12066946]
[1758031988259,0.96168363,114990.0,114980.0,0.53716061]
[1758031988540,0.96168363,114990.0,114980.0,0.12066946]
[1758031988541,1.37817478,114990.0,114980.0,0.12066946]
[1758031988776,0.96168363,114990.0,114980.0,0.53716061]
[1758031989242,0.96168363,114990.0,114980.0,0.12066946]
[1758031990189,0.96168363,114990.0,114980.0,0.53716061]
[1758031990429,1.37817478,114990.0,114980.0,0.12066946]
[1758031990880,0.96168363,114990.0,114980.0,0.12066946]
[1758031991100,1.37817478,114990.0,114980.0,0.12066946]
[1758031991575,1.37817478,114990.0,114980.0,0.09751946]
[1758031991852,1.37817478,114990.0,114980.0,0.09444946]
[1758031991853,0.96168363,114990.0,114980.0,0.09444946]
[1758031992103,0.96772326,114990.0,114980.0,0.09444946]
[1758031992350,1.79466593,114990.0,114980.0,0.09444946]
[1758031992581,0.96356363,114990.0,114980.0,0.12064946]
[1758031993023,1.38005478,114990.0,114980.0,0.12064946]
[1758031994159,0.96356363,114990.0,114980.0,0.12064946]
[1758031994414,1.71437478,114990.0,114980.0,0.12064946]
[1758031995122,0.99528363,114990.0,114980.0,0.12064946]
[1758031995346,1.29828363,114990.0,114980.0,0.12064946]
[1758031995592,1.71477478,114990.0,114980.0,0.12064946]
[1758031996070,1.29828363,114990.0,114980.0,0.12064946]
[1758031996296,0.99528363,114990.0,114980.0,0.12064946]
[1758031996541,1.71465478,114990.0,114980.0,0.13804378]
[1758031996762,1.41177478,114990.0,114980.0,0.13804378]
[1758031996983,1.71457478,114990.0,114980.0,0.12064946]
[1758031998584,1.29808363,114990.0,114980.0,0.12068946]
[1758031998819,1.71457478,114990.0,114980.0,0.12068946]
[1758031999048,1.71445478,114990.0,114980.0,0.12068946]
[1758031999297,1.29796363,114990.0,114980.0,0.12068946]
[1758031999523,1.71465478,114990.0,114980.0,0.12068946]
[1758032000001,0.99528363,114990.0,114980.0,0.12068946]
[1758032000231,1.71453478,114990.0,114980.0,0.12068946]
[1758032000702,1.71453478,114990.0,114980.0,0.13808378]
[1758032000918,1.29804363,114990.0,114980.0,0.12068946]
[1758032001156,1.71453478,114990.0,114980.0,0.12068946]
[1758032001658,1.29804363,114990.0,114980.0,0.12068946]
[1758032001889,1.29788363,114990.0,114980.0,0.12068946]
[1758032002838,0.82135547,114990.0,114980.0,0.72851822]
[1758032003075,1.29804363,114990.0,114980.0,0.29463275]
[1758032003314,1.29804363,114990.0,114980.0,0.63463275]
[1758032003544,1.28198816,114990.0,114980.0,1.0511239]
[1758032003788,1.28198816,114990.0,114980.0,0.63463275]
[1758032004018,1.28198816,114990.0,114980.0,0.69977]
[1758032004286,1.28198816,114990.0,114980.0,1.11626115]
[1758032004520,1.1079,114990.0,114980.0,1.11626115]
[1758032004757,0.8053,114990.0,114980.0,1.11626115]
[1758032005012,1.1079,114990.0,114980.0,1.11626115]
[1758032005251,1.05786,114990.0,114980.0,0.69977]
[1758032005495,1.05786,114990.0,114980.0,1.11598397]
[1758032005952,1.05586,114990.0,114980.0,1.11598397]
[1758032006180,1.05486,114990.0,114980.0,0.69977]
[1758032006405,1.05686,114990.0,114980.0,1.11598397]
[1758032006889,1.05486,114990.0,114980.0,1.51598397]
[1758032007160,1.05786,114990.0,114980.0,1.51598397]
[1758032007871,1.05786,114990.0,114980.0,1.09977]
[1758032008124,0.7553,114990.0,114980.0,1.51598397]
[1758032008406,1.05766,114990.0,114980.0,1.09977]
[1758032008644,1.05666,114990.0,114980.0,1.51598397]
[1758032008829,1.05666,114990.0,114980.0,1.09977]
[1758032009092,1.05666,114990.0,114980.0,1.51598397]
[1758032009336,1.05566,114990.0,114980.0,1.51698397]
[1758032009820,1.05566,114990.0,114980.0,1.09977]
[1758032010079,1.05466,114990.0,114980.0,1.12589852]
[1758032010325,1.05866,114990.0,114980.0,1.54311249]
[1758032010561,1.05966,114990.0,114980.0,1.54511249]
[1758032010779,1.05566,114990.0,114980.0,1.54411249]
[1758032011271,0.72134,114990.0,114980.0,1.54411249]
[1758032011754,0.72334,114990.0,114980.0,1.54511249]
[1758032011976,0.72334,114990.0,114980.0,1.12889852]
[1758032012221,0.72334,114990.0,114980.0,1.54511249]
[1758032012928,0.72334,114990.0,114980.0,1.12889852]
[1758032013169,0.72334,114990.0,114980.0,1.54511249]
[1758032015304,0.72258,114990.0,114980.0,1.96132646]
[1758032015527,0.72258,114990.0,114980.0,1.54511249]
[1758032015759,0.72258,114990.0,114980.0,1.96132646]
[1758032016193,0.72258,114990.0,114980.0,1.12889852]
[1758032016413,0.72258,114990.0,114980.0,1.96132646]
[1758032016636,0.72258,114990.0,114980.0,1.12889852]
[1758032016860,0.72258,114990.0,114980.0,1.96132646]
[1758032018045,0.72258,114990.0,114980.0,1.12889852]
[1758032018279,0.72258,114990.0,114980.0,1.96132646]
[1758032020848,0.72258,114990.0,114980.0,1.12889852]
[1758032021085,0.72258,114990.0,114980.0,1.96132646]
[1758032021565,0.72258,114990.0,114980.0,1.54511249]
[1758032023624,0.72258,114990.0,114980.0,1.96132646]
[1758032024668,0.72258,114990.0,114980.0,1.12889852]
[1758032024883,0.72258,114990.0,114980.0,1.96132646]
[1758032025520,0.72258,114990.0,114980.0,1.54511249]
[1758032025731,0.72258,114990.0,114980.0,1.12889852]
[1758032026210,0.94650816,114990.0,114980.0,0.70277]
[1758032026397,1.36272213,114990.0,114980.0,0.70277]
[1758032026641,0.94650816,114990.0,114980.0,0.6997]
[1758032026860,0.94650816,114990.0,114980.0,1.11915397]